{"text_format":"1","workbook":"xlsx","n_sheets":3,"sheets":["Instruccions","Reformulació Pressupost Ab","Resum Pressupost"],"not_rendered":{"charts":0,"images":4,"macros":1,"external_links":0,"defined_names":8,"comments":2,"pivot_tables":0},"unopened":[],"bounds":{"document_bytes":16777216,"sheet_cells":100000,"rows_first":2000,"rows_last":500,"rows_between":2000,"halvings":0,"cell_chars":16384,"cell_head_chars":4096},"cells_cut":0,"cells_raw":0,"read":"whole","date_system":"1900"}

{"sheet":"Instruccions","index":0,"n_rows":15,"n_cols":10,"rows_kept":15,"cut":false,"hidden":false,"merged":[[1,9,1,11],[4,2,4,17],[2,2,3,17],[14,1,15,15]]}
[]
[null,null,null,null,null,null,null,null,null,"Doc_basic3_pressup_reformulat_Ab INSTRUCCIONS"]
[null,null,"SUBVENCIONS DE L’AJUNTAMENT DE BARCELONA PER L’ENFORTIMENT DE L’ECONOMIA SOCIAL I SOLIDÀRIA I PER LA INTERCOOPERACIÓ EN L’ESTRATÈGIA #ESSBCN2030 - ENFORTIM L’ESS 2024"]
[]
[null,null,"Aspectes rellevants relacionats amb la reformulació"]
[]
[]
[]
[]
[null,"1. Emplenar la pestanya  \"Reformulació Pressupost\" amb les dades econòmiques del projecte:"]
[null,"1.1  Emplenar els quadres DADES BÀSIQUES-PREVISIÓ DE DESPESES DEL PROJECTE SUBVENCIONABLE INICIAL, amb les dades econòmiques de la proposta inicial amb subvenció atorgada."]
[null,"1.2  Emplenar els quadres DADES BÀSIQUES-PREVISIÓ DE DESPESES DEL PROJECTE REFORMULAT, amb les dades econòmiques de la proposta de reformulació."]
[null,"2. Revisar i emplenar la pestanya  \"Resum Pressupost\" amb les dades econòmiques del projecte:"]
[null,"3. Imprimir els fulls de les 2 pestanyes (Reformulació pressupost i Resum Pressupost). En format pdf."]
[null,"4. Si la sol·licitud es va presentar per via telemàtica, cal que registreu la documentació, telemàticament, com a tràmit específic, dins la convocatòria específica com annexió de documents addicionals i feu servir el número de tràmit que el sistema de registre us va donar en el moment de la presentació de la sol·licitud de la subvenció."]

{"sheet":"Reformulació Pressupost Ab","index":1,"n_rows":103,"n_cols":13,"rows_kept":103,"cut":false,"hidden":false,"merged":[[93,0,93,12],[94,0,94,12],[1,1,1,8],[15,0,15,3],[99,0,99,12],[7,5,7,6],[15,10,15,12],[3,0,3,12],[90,0,90,12],[91,0,91,12],[92,0,92,12],[15,5,15,8],[101,0,101,12],[102,0,102,12],[95,0,95,12],[96,0,96,12],[97,0,97,12],[98,0,98,12],[100,0,100,12]]}
[]
[null,"Reformulació pressupost Modalitat Ab"]
[]
["Programa de subvencions de l'Ajuntament de Barcelona per l'enfortiment de l'Economia Social i Solidària i per la intercooperació en l'Estratègia #ESSBCN2030 - ENFORTIM L’ESS 2024"]
["DADES BÀSIQUES"]
["Nom de la persona jurídica",null,{"$f":"+IF(H6>Dadesbasiques[[#This Row],[Columna1]],\"ALERTA: La quantia de la subvenció atorgada no pot superar el 80% de la despesa total del projecte a subvencionar\", \" \")","v":" "},null,null,"  "]
["NIF de la persona jurídica",null,{"$f":"+IF(H7>Dadesbasiques[[#This Row],[Columna1]],\"ALERTA: La quantia de la subvenció atorgada no pot superar el 80% de la despesa total del projecte a subvencionar\", \" \")","v":" "}]
["Nom del projecte subvencionable",null,{"$f":"+IF(G8>Dadesbasiques[[#This Row],[Columna1]],\"ALERTA: La quantia de la subvenció atorgada no pot superar el 80% de la despesa total del projecte a subvencionar\", \" \")","v":" "},null,null,"DADES BÀSIQUES PROJECTE REFORMULAT"]
["Import total del projecte subvencionable",null,null,null,null,"Import total del projecte REFORMULAT"]
["Import imputable a la subvenció municipal",null,null,null,null,"Import imputable a la subvenció ATORGADA"]
["Import de l'aportació / Cofinançament de l'organització",{"$f":"+B9-B10","v":0},null,null,null,"Import de l'aportació / Cofinançament de l'organització",{"$f":"G9-G10","v":0}]
["% de l'import sol·licitat respecte el total del projecte subvencionable (*)",{"$f":"B10/B9","v":{"$error":"#DIV/0!"}},null,null,null,"% de l'import sol·licitat respecte el total del projecte subvencionat",{"$f":"G10/G9","v":{"$error":"#DIV/0!"}},{"$f":"+IF(G12>Dadesbasiques[[#This Row],[Columna1]],\"*Aquest percentatge ha de ser igual o menor al percentatge subvencionat inicialment.\",\" \")","v":{"$error":"#DIV/0!"}}]
["Data inici del projecte subvencionat (dd/mm/aaaa)",null,{"$f":"+IF(H13>Dadesbasiques[[#This Row],[Columna1]],\"ALERTA: La quantia de la subvenció atorgada no pot superar el 80% de la despesa total del projecte a subvencionar\", \" \")","v":" "}]
["Data fi del projecte subvencionat (dd/mm/aaaa)",null,{"$f":"+IF(H14>Dadesbasiques[[#This Row],[Columna1]],\"ALERTA: La quantia de la subvenció atorgada no pot superar el 80% de la despesa total del projecte a subvencionar\", \" \")","v":" "}]
[]
["PREVISIÓ DE DESPESES DEL PROJECTE SUBVENCIONABLE INICIAL",null,null,null,null,"PREVISIÓ DE DESPESES DEL PROJECTE REFORMULAT",null,null,null,null,"DIFERÈNCIA REFORMULACIÓ I PROJECTE INICIAL"]
[]
["Partides","Import imputable a la subvenció municipal","Import de l'aportació / Cofinançament de l'organització","Import total del projecte",null,"Partides","Import imputable a la subvenció municipal","Import de l'aportació / Cofinançament de l'organització","Import total del projecte",null,"Import imputable a la subvenció municipal","Import de l'aportació / Cofinançament de l'organització","Import total del projecte"]
["D1.  Nòmines i seguretat social (règim general o socis/es cooperativistes en règim d’autònoms) del personal propi vinculat al projecte subvencionable (màxim 25% import subvenció)",{"$f":"SUM(B20:B22)","v":0},{"$f":"SUM(C20:C22)","v":0},{"$f":"DespesesProjecte[[#This Row],[Import imputable a la subvenció municipal]]+DespesesProjecte[[#This Row],[Import de l''aportació / Cofinançament de l''organització]]","v":0},null,"D1.  Nòmines i seguretat social (règim general o socis/es cooperativistes en règim d’autònoms) del personal propi vinculat al projecte subvencionable (màxim 25% import subvenció)",{"$f":"SUM(G20:G22)","v":0},{"$f":"SUM(H20:H22)","v":0},{"$f":"+G19+H19","v":0},null,{"$f":"DespesesProjecte[[#This Row],[Import imputable a la subvenció municipal]]-G19","v":0},{"$f":"DespesesProjecte[[#This Row],[Import de l''aportació / Cofinançament de l''organització]]-H19","v":0},{"$f":"DespesesProjecte[[#This Row],[Import total del projecte]]-I19","v":0}]
[null,null,null,{"$f":"DespesesProjecte[[#This Row],[Import imputable a la subvenció municipal]]+DespesesProjecte[[#This Row],[Import de l''aportació / Cofinançament de l''organització]]","v":0},null,null,null,null,{"$f":"+G20+H20","v":0},null,{"$f":"DespesesProjecte[[#This Row],[Import imputable a la subvenció municipal]]-G20","v":0},{"$f":"DespesesProjecte[[#This Row],[Import de l''aportació / Cofinançament de l''organització]]-H20","v":0},{"$f":"DespesesProjecte[[#This Row],[Import total del projecte]]-I20","v":0}]
[null,null,null,{"$f":"DespesesProjecte[[#This Row],[Import imputable a la subvenció municipal]]+DespesesProjecte[[#This Row],[Import de l''aportació / Cofinançament de l''organització]]","v":0},null,null,null,null,0,null,{"$f":"DespesesProjecte[[#This Row],[Import imputable a la subvenció municipal]]-G21","v":0},{"$f":"DespesesProjecte[[#This Row],[Import de l''aportació / Cofinançament de l''organització]]-H21","v":0},{"$f":"DespesesProjecte[[#This Row],[Import total del projecte]]-I21","v":0}]
[null,null,null,{"$f":"DespesesProjecte[[#This Row],[Import imputable a la subvenció municipal]]+DespesesProjecte[[#This Row],[Import de l''aportació / Cofinançament de l''organització]]","v":0},null,null,null,null,0,null,{"$f":"DespesesProjecte[[#This Row],[Import imputable a la subvenció municipal]]-G22","v":0},{"$f":"DespesesProjecte[[#This Row],[Import de l''aportació / Cofinançament de l''organització]]-H22","v":0},{"$f":"DespesesProjecte[[#This Row],[Import total del projecte]]-I22","v":0}]
["D2. Nòmines i seguretat social d’estudiants en pràctiques (amb un límit del 80% del seu sou brut corresponent al període de l’execució de la subvenció) - excepte si la seguretat social està bonificada",{"$f":"SUM(B24:B26)","v":0},{"$f":"SUM(C24:C26)","v":0},{"$f":"DespesesProjecte[[#This Row],[Import imputable a la subvenció municipal]]+DespesesProjecte[[#This Row],[Import de l''aportació / Cofinançament de l''organització]]","v":0},null,"D2. Nòmines i seguretat social d’estudiants en pràctiques (amb un límit del 80% del seu sou brut corresponent al període de l’execució de la subvenció) - excepte si la seguretat social està bonificada",{"$f":"SUM(G24:G26)","v":0},{"$f":"SUM(H24:H26)","v":0},{"$f":"+G23+H23","v":0},null,{"$f":"DespesesProjecte[[#This Row],[Import imputable a la subvenció municipal]]-G24","v":0},{"$f":"DespesesProjecte[[#This Row],[Import de l''aportació / Cofinançament de l''organització]]-H23","v":0},{"$f":"DespesesProjecte[[#This Row],[Import total del projecte]]-I23","v":0}]
[null,null,null,{"$f":"SUM(DespesesProjecte[[#This Row],[Import imputable a la subvenció municipal]],DespesesProjecte[[#This Row],[Import de l''aportació / Cofinançament de l''organització]])","v":0},null,null,null,null,0,null,{"$f":"DespesesProjecte[[#This Row],[Import imputable a la subvenció municipal]]-G24","v":0},{"$f":"DespesesProjecte[[#This Row],[Import de l''aportació / Cofinançament de l''organització]]-H24","v":0},{"$f":"DespesesProjecte[[#This Row],[Import total del projecte]]-I24","v":0}]
[null,null,null,{"$f":"SUM(DespesesProjecte[[#This Row],[Import imputable a la subvenció municipal]],DespesesProjecte[[#This Row],[Import de l''aportació / Cofinançament de l''organització]])","v":0},null,null,null,null,0,null,{"$f":"DespesesProjecte[[#This Row],[Import imputable a la subvenció municipal]]-G25","v":0},{"$f":"DespesesProjecte[[#This Row],[Import de l''aportació / Cofinançament de l''organització]]-H25","v":0},{"$f":"DespesesProjecte[[#This Row],[Import total del projecte]]-I25","v":0}]
[null,null,null,{"$f":"SUM(DespesesProjecte[[#This Row],[Import imputable a la subvenció municipal]],DespesesProjecte[[#This Row],[Import de l''aportació / Cofinançament de l''organització]])","v":0},null,null,null,null,0,null,{"$f":"DespesesProjecte[[#This Row],[Import imputable a la subvenció municipal]]-G26","v":0},{"$f":"DespesesProjecte[[#This Row],[Import de l''aportació / Cofinançament de l''organització]]-H26","v":0},{"$f":"DespesesProjecte[[#This Row],[Import total del projecte]]-I26","v":0}]
["TOTAL DE DESPESES DEL PERSONAL ",{"$f":"B19+B23","v":0},{"$f":"C19+C23","v":0},{"$f":"D19+D23","v":0},null,"TOTAL DE DESPESES DEL PERSONAL (Màxim 25% de l'import imputable a la subvenció municipal)",{"$f":"G19+G23","v":0},{"$f":"H19+H23","v":0},{"$f":"I19+I23","v":0},{"$f":"+IF(G27>G10*0.4,\"ALERTA: Màxim 40% de l'import imputable a la subvenció municipal\", \" \")","v":" "},{"$f":"DespesesProjecte[[#This Row],[Import imputable a la subvenció municipal]]-G29","v":0},{"$f":"DespesesProjecte[[#This Row],[Import de l''aportació / Cofinançament de l''organització]]-H29","v":0},{"$f":"DespesesProjecte[[#This Row],[Import total del projecte]]-I29","v":0}]
["D3. Treballs realitzats per professionals i empreses externes directament vinculades al projecte, (inclou despeses de l'estudiant en pràctiques: taxes i altres despeses relacionades amb el conveni de pràctiques)",{"$f":"SUM(B29:B31)","v":0},{"$f":"SUM(C29:C31)","v":0},{"$f":"SUM(DespesesProjecte[[#This Row],[Import imputable a la subvenció municipal]],DespesesProjecte[[#This Row],[Import de l''aportació / Cofinançament de l''organització]])","v":0},null,"D3. Treballs realitzats per professionals i empreses externes directament vinculades al projecte, (inclou despeses de l'estudiant en pràctiques: taxes i altres despeses relacionades amb el conveni de pràctiques)",{"$f":"SUM(G29:G35)","v":0},{"$f":"SUM(H29:H35)","v":0},{"$f":"+G28+H28","v":0},null,{"$f":"DespesesProjecte[[#This Row],[Import imputable a la subvenció municipal]]-G28","v":0},{"$f":"DespesesProjecte[[#This Row],[Import de l''aportació / Cofinançament de l''organització]]-H28","v":0},{"$f":"DespesesProjecte[[#This Row],[Import total del projecte]]-I28","v":0}]
[null,null,null,{"$f":"SUM(DespesesProjecte[[#This Row],[Import imputable a la subvenció municipal]],DespesesProjecte[[#This Row],[Import de l''aportació / Cofinançament de l''organització]])","v":0},null,null,null,null,{"$f":"+G29+H29","v":0},null,{"$f":"DespesesProjecte[[#This Row],[Import imputable a la subvenció municipal]]-G29","v":0},{"$f":"DespesesProjecte[[#This Row],[Import de l''aportació / Cofinançament de l''organització]]-H29","v":0},{"$f":"DespesesProjecte[[#This Row],[Import total del projecte]]-I29","v":0}]
[null,null,null,{"$f":"SUM(DespesesProjecte[[#This Row],[Import imputable a la subvenció municipal]],DespesesProjecte[[#This Row],[Import de l''aportació / Cofinançament de l''organització]])","v":0},null,null,null,null,0,null,{"$f":"DespesesProjecte[[#This Row],[Import imputable a la subvenció municipal]]-G30","v":0},{"$f":"DespesesProjecte[[#This Row],[Import de l''aportació / Cofinançament de l''organització]]-H30","v":0},{"$f":"DespesesProjecte[[#This Row],[Import total del projecte]]-I30","v":0}]
[null,null,null,{"$f":"SUM(DespesesProjecte[[#This Row],[Import imputable a la subvenció municipal]],DespesesProjecte[[#This Row],[Import de l''aportació / Cofinançament de l''organització]])","v":0},null,null,null,null,0,null,{"$f":"DespesesProjecte[[#This Row],[Import imputable a la subvenció municipal]]-G31","v":0},{"$f":"DespesesProjecte[[#This Row],[Import de l''aportació / Cofinançament de l''organització]]-H31","v":0},{"$f":"DespesesProjecte[[#This Row],[Import total del projecte]]-I31","v":0}]
["D4. Despeses de matriculació en accions formatives externes amb una durada mínima de 150 hores i/o un cost mínim de 600€ per a cada participant",{"$f":"SUM(B33:B35)","v":0},{"$f":"SUM(C33:C35)","v":0},{"$f":"SUM(DespesesProjecte[[#This Row],[Import imputable a la subvenció municipal]],DespesesProjecte[[#This Row],[Import de l''aportació / Cofinançament de l''organització]])","v":0},null,"D4. Despeses de matriculació en accions formatives externes amb una durada mínima de 150 hores i/o un cost mínim de 600€ per a cada participant",{"$f":"SUM(G33:G35)","v":0},{"$f":"SUM(H33:H35)","v":0},{"$f":"G32+H32","v":0},null,{"$f":"DespesesProjecte[[#This Row],[Import imputable a la subvenció municipal]]-G32","v":0},{"$f":"DespesesProjecte[[#This Row],[Import de l''aportació / Cofinançament de l''organització]]-H32","v":0},{"$f":"DespesesProjecte[[#This Row],[Import total del projecte]]-I32","v":0}]
[null,null,null,null,null,null,null,null,{"$f":"G33+H33","v":0},null,{"$f":"DespesesProjecte[[#This Row],[Import imputable a la subvenció municipal]]-G33","v":0},{"$f":"DespesesProjecte[[#This Row],[Import de l''aportació / Cofinançament de l''organització]]-H33","v":0},{"$f":"DespesesProjecte[[#This Row],[Import total del projecte]]-I33","v":0}]
[null,null,null,null,null,null,null,null,{"$f":"G34+H34","v":0},"COMENTARI!!",{"$f":"DespesesProjecte[[#This Row],[Import imputable a la subvenció municipal]]-G34","v":0},{"$f":"DespesesProjecte[[#This Row],[Import de l''aportació / Cofinançament de l''organització]]-H34","v":0},{"$f":"DespesesProjecte[[#This Row],[Import total del projecte]]-I34","v":0}]
[null,null,null,{"$f":"SUM(DespesesProjecte[[#This Row],[Import imputable a la subvenció municipal]],DespesesProjecte[[#This Row],[Import de l''aportació / Cofinançament de l''organització]])","v":0},null,null,null,null,0,null,{"$f":"DespesesProjecte[[#This Row],[Import imputable a la subvenció municipal]]-G35","v":0},{"$f":"DespesesProjecte[[#This Row],[Import de l''aportació / Cofinançament de l''organització]]-H35","v":0},{"$f":"DespesesProjecte[[#This Row],[Import total del projecte]]-I35","v":0}]
["TOTAL D'ALTRES DESPESES DIRECTES ",{"$f":"B28+B32","v":0},{"$f":"C28+C32","v":0},{"$f":"D28+D32","v":0},null,"TOTAL D'ALTRES DESPESES DIRECTES ",{"$f":"G28+G32","v":0},{"$f":"H28+H32","v":0},{"$f":"I28+I32","v":0},null,{"$f":"DespesesProjecte[[#This Row],[Import imputable a la subvenció municipal]]-G33","v":0},{"$f":"DespesesProjecte[[#This Row],[Import de l''aportació / Cofinançament de l''organització]]-H33","v":0},{"$f":"DespesesProjecte[[#This Row],[Import total del projecte]]-I33","v":0}]
["TOTAL DESPESES DIRECTES (aquelles que s’identifiquen directament amb el projecte subvencionable)",{"$f":"SUM(B27,B36)","v":0},{"$f":"SUM(C27,C36)","v":0},{"$f":"D27+D36","v":0},null,"TOTAL DESPESES DIRECTES (aquelles que s’identifiquen directament amb el projecte subvencionable)",{"$f":"SUM(G27,G36)","v":0},{"$f":"SUM(H27,H36)","v":0},{"$f":"I27+I36","v":0},null,{"$f":"DespesesProjecte[[#This Row],[Import imputable a la subvenció municipal]]-G34","v":0},{"$f":"DespesesProjecte[[#This Row],[Import de l''aportació / Cofinançament de l''organització]]-H34","v":0},{"$f":"DespesesProjecte[[#This Row],[Import total del projecte]]-I34","v":0}]
["I1. Personal propi vinculat indirectament (nòmines i seguretat social) ",{"$f":"SUM(B39:B42)","v":0},{"$f":"SUM(C39:C42)","v":0},{"$f":"SUM(DespesesProjecte[[#This Row],[Import imputable a la subvenció municipal]],DespesesProjecte[[#This Row],[Import de l''aportació / Cofinançament de l''organització]])","v":0},null,"I1. Personal propi vinculat indirectament (nòmines i seguretat social) ",{"$f":"SUM(G39:G42)","v":0},{"$f":"SUM(H39:H42)","v":0},{"$f":"+G38+H38","v":0},null,{"$f":"DespesesProjecte[[#This Row],[Import imputable a la subvenció municipal]]-G38","v":0},{"$f":"DespesesProjecte[[#This Row],[Import de l''aportació / Cofinançament de l''organització]]-H38","v":0},{"$f":"DespesesProjecte[[#This Row],[Import total del projecte]]-I38","v":0}]
[null,null,null,{"$f":"SUM(DespesesProjecte[[#This Row],[Import imputable a la subvenció municipal]],DespesesProjecte[[#This Row],[Import de l''aportació / Cofinançament de l''organització]])","v":0},null,null,null,null,{"$f":"+G39+H39","v":0},null,{"$f":"DespesesProjecte[[#This Row],[Import imputable a la subvenció municipal]]-G39","v":0},{"$f":"DespesesProjecte[[#This Row],[Import de l''aportació / Cofinançament de l''organització]]-H39","v":0},{"$f":"DespesesProjecte[[#This Row],[Import total del projecte]]-I39","v":0}]
[null,null,null,{"$f":"SUM(DespesesProjecte[[#This Row],[Import imputable a la subvenció municipal]],DespesesProjecte[[#This Row],[Import de l''aportació / Cofinançament de l''organització]])","v":0},null,null,null,null,0,null,{"$f":"DespesesProjecte[[#This Row],[Import imputable a la subvenció municipal]]-G40","v":0},{"$f":"DespesesProjecte[[#This Row],[Import de l''aportació / Cofinançament de l''organització]]-H40","v":0},{"$f":"DespesesProjecte[[#This Row],[Import total del projecte]]-I40","v":0}]
[null,null,null,{"$f":"SUM(DespesesProjecte[[#This Row],[Import imputable a la subvenció municipal]],DespesesProjecte[[#This Row],[Import de l''aportació / Cofinançament de l''organització]])","v":0},null,null,null,null,0,null,{"$f":"DespesesProjecte[[#This Row],[Import imputable a la subvenció municipal]]-G41","v":0},{"$f":"DespesesProjecte[[#This Row],[Import de l''aportació / Cofinançament de l''organització]]-H41","v":0},{"$f":"DespesesProjecte[[#This Row],[Import total del projecte]]-I41","v":0}]
[null,null,null,{"$f":"SUM(DespesesProjecte[[#This Row],[Import imputable a la subvenció municipal]],DespesesProjecte[[#This Row],[Import de l''aportació / Cofinançament de l''organització]])","v":0},null,null,null,null,0,null,{"$f":"DespesesProjecte[[#This Row],[Import imputable a la subvenció municipal]]-G42","v":0},{"$f":"DespesesProjecte[[#This Row],[Import de l''aportació / Cofinançament de l''organització]]-H42","v":0},{"$f":"DespesesProjecte[[#This Row],[Import total del projecte]]-I42","v":0}]
["I2. Assegurances",{"$f":"SUM(B44:B47)","v":0},{"$f":"SUM(C44:C47)","v":0},{"$f":"SUM(DespesesProjecte[[#This Row],[Import imputable a la subvenció municipal]],DespesesProjecte[[#This Row],[Import de l''aportació / Cofinançament de l''organització]])","v":0},null,"I2. Assegurances",{"$f":"SUM(G44:G47)","v":0},{"$f":"SUM(H44:H47)","v":0},0,null,{"$f":"DespesesProjecte[[#This Row],[Import imputable a la subvenció municipal]]-G43","v":0},{"$f":"DespesesProjecte[[#This Row],[Import de l''aportació / Cofinançament de l''organització]]-H43","v":0},{"$f":"DespesesProjecte[[#This Row],[Import total del projecte]]-I43","v":0}]
[null,null,null,{"$f":"SUM(DespesesProjecte[[#This Row],[Import imputable a la subvenció municipal]],DespesesProjecte[[#This Row],[Import de l''aportació / Cofinançament de l''organització]])","v":0},null,null,null,null,0,null,{"$f":"DespesesProjecte[[#This Row],[Import imputable a la subvenció municipal]]-G44","v":0},{"$f":"DespesesProjecte[[#This Row],[Import de l''aportació / Cofinançament de l''organització]]-H44","v":0},{"$f":"DespesesProjecte[[#This Row],[Import total del projecte]]-I44","v":0}]
[null,null,null,{"$f":"SUM(DespesesProjecte[[#This Row],[Import imputable a la subvenció municipal]],DespesesProjecte[[#This Row],[Import de l''aportació / Cofinançament de l''organització]])","v":0},null,null,null,null,0,null,{"$f":"DespesesProjecte[[#This Row],[Import imputable a la subvenció municipal]]-G45","v":0},{"$f":"DespesesProjecte[[#This Row],[Import de l''aportació / Cofinançament de l''organització]]-H45","v":0},{"$f":"DespesesProjecte[[#This Row],[Import total del projecte]]-I45","v":0}]
[null,null,null,{"$f":"SUM(DespesesProjecte[[#This Row],[Import imputable a la subvenció municipal]],DespesesProjecte[[#This Row],[Import de l''aportació / Cofinançament de l''organització]])","v":0},null,null,null,null,0,null,{"$f":"DespesesProjecte[[#This Row],[Import imputable a la subvenció municipal]]-G46","v":0},{"$f":"DespesesProjecte[[#This Row],[Import de l''aportació / Cofinançament de l''organització]]-H46","v":0},{"$f":"DespesesProjecte[[#This Row],[Import total del projecte]]-I46","v":0}]
[null,null,null,{"$f":"SUM(DespesesProjecte[[#This Row],[Import imputable a la subvenció municipal]],DespesesProjecte[[#This Row],[Import de l''aportació / Cofinançament de l''organització]])","v":0},null,null,null,null,0,null,{"$f":"DespesesProjecte[[#This Row],[Import imputable a la subvenció municipal]]-G47","v":0},{"$f":"DespesesProjecte[[#This Row],[Import de l''aportació / Cofinançament de l''organització]]-H47","v":0},{"$f":"DespesesProjecte[[#This Row],[Import total del projecte]]-I47","v":0}]
["I3. Amortització",{"$f":"SUM(B49:B52)","v":0},{"$f":"SUM(C49:C52)","v":0},{"$f":"SUM(DespesesProjecte[[#This Row],[Import imputable a la subvenció municipal]],DespesesProjecte[[#This Row],[Import de l''aportació / Cofinançament de l''organització]])","v":0},null,"I3. Amortització",{"$f":"SUM(G49:G52)","v":0},{"$f":"SUM(H49:H52)","v":0},0,null,{"$f":"DespesesProjecte[[#This Row],[Import imputable a la subvenció municipal]]-G48","v":0},{"$f":"DespesesProjecte[[#This Row],[Import de l''aportació / Cofinançament de l''organització]]-H48","v":0},{"$f":"DespesesProjecte[[#This Row],[Import total del projecte]]-I48","v":0}]
[null,null,null,{"$f":"SUM(DespesesProjecte[[#This Row],[Import imputable a la subvenció municipal]],DespesesProjecte[[#This Row],[Import de l''aportació / Cofinançament de l''organització]])","v":0},null,null,null,null,0,null,{"$f":"DespesesProjecte[[#This Row],[Import imputable a la subvenció municipal]]-G49","v":0},{"$f":"DespesesProjecte[[#This Row],[Import de l''aportació / Cofinançament de l''organització]]-H49","v":0},{"$f":"DespesesProjecte[[#This Row],[Import total del projecte]]-I49","v":0}]
[null,null,null,{"$f":"SUM(DespesesProjecte[[#This Row],[Import imputable a la subvenció municipal]],DespesesProjecte[[#This Row],[Import de l''aportació / Cofinançament de l''organització]])","v":0},null,null,null,null,0,null,{"$f":"DespesesProjecte[[#This Row],[Import imputable a la subvenció municipal]]-G50","v":0},{"$f":"DespesesProjecte[[#This Row],[Import de l''aportació / Cofinançament de l''organització]]-H50","v":0},{"$f":"DespesesProjecte[[#This Row],[Import total del projecte]]-I50","v":0}]
[null,null,null,{"$f":"SUM(DespesesProjecte[[#This Row],[Import imputable a la subvenció municipal]],DespesesProjecte[[#This Row],[Import de l''aportació / Cofinançament de l''organització]])","v":0},null,null,null,null,0,null,{"$f":"DespesesProjecte[[#This Row],[Import imputable a la subvenció municipal]]-G51","v":0},{"$f":"DespesesProjecte[[#This Row],[Import de l''aportació / Cofinançament de l''organització]]-H51","v":0},{"$f":"DespesesProjecte[[#This Row],[Import total del projecte]]-I51","v":0}]
[null,null,null,{"$f":"SUM(DespesesProjecte[[#This Row],[Import imputable a la subvenció municipal]],DespesesProjecte[[#This Row],[Import de l''aportació / Cofinançament de l''organització]])","v":0},null,null,null,null,0,null,{"$f":"DespesesProjecte[[#This Row],[Import imputable a la subvenció municipal]]-G52","v":0},{"$f":"DespesesProjecte[[#This Row],[Import de l''aportació / Cofinançament de l''organització]]-H52","v":0},{"$f":"DespesesProjecte[[#This Row],[Import total del projecte]]-I52","v":0}]
["I4. Lloguer de béns immobles",{"$f":"SUM(B54:B57)","v":0},{"$f":"SUM(C54:C57)","v":0},{"$f":"SUM(DespesesProjecte[[#This Row],[Import imputable a la subvenció municipal]],DespesesProjecte[[#This Row],[Import de l''aportació / Cofinançament de l''organització]])","v":0},null,"I4. Lloguer de béns immobles",{"$f":"SUM(G54:G57)","v":0},{"$f":"SUM(H54:H57)","v":0},0,null,{"$f":"DespesesProjecte[[#This Row],[Import imputable a la subvenció municipal]]-G53","v":0},{"$f":"DespesesProjecte[[#This Row],[Import de l''aportació / Cofinançament de l''organització]]-H53","v":0},{"$f":"DespesesProjecte[[#This Row],[Import total del projecte]]-I53","v":0}]
[null,null,null,{"$f":"SUM(DespesesProjecte[[#This Row],[Import imputable a la subvenció municipal]],DespesesProjecte[[#This Row],[Import de l''aportació / Cofinançament de l''organització]])","v":0},null,null,null,null,0,null,{"$f":"DespesesProjecte[[#This Row],[Import imputable a la subvenció municipal]]-G54","v":0},{"$f":"DespesesProjecte[[#This Row],[Import de l''aportació / Cofinançament de l''organització]]-H54","v":0},{"$f":"DespesesProjecte[[#This Row],[Import total del projecte]]-I54","v":0}]
[null,null,null,{"$f":"SUM(DespesesProjecte[[#This Row],[Import imputable a la subvenció municipal]],DespesesProjecte[[#This Row],[Import de l''aportació / Cofinançament de l''organització]])","v":0},null,null,null,null,0,null,{"$f":"DespesesProjecte[[#This Row],[Import imputable a la subvenció municipal]]-G55","v":0},{"$f":"DespesesProjecte[[#This Row],[Import de l''aportació / Cofinançament de l''organització]]-H55","v":0},{"$f":"DespesesProjecte[[#This Row],[Import total del projecte]]-I55","v":0}]
[null,null,null,{"$f":"SUM(DespesesProjecte[[#This Row],[Import imputable a la subvenció municipal]],DespesesProjecte[[#This Row],[Import de l''aportació / Cofinançament de l''organització]])","v":0},null,null,null,null,0,null,{"$f":"DespesesProjecte[[#This Row],[Import imputable a la subvenció municipal]]-G56","v":0},{"$f":"DespesesProjecte[[#This Row],[Import de l''aportació / Cofinançament de l''organització]]-H56","v":0},{"$f":"DespesesProjecte[[#This Row],[Import total del projecte]]-I56","v":0}]
[null,null,null,{"$f":"SUM(DespesesProjecte[[#This Row],[Import imputable a la subvenció municipal]],DespesesProjecte[[#This Row],[Import de l''aportació / Cofinançament de l''organització]])","v":0},null,null,null,null,0,null,{"$f":"DespesesProjecte[[#This Row],[Import imputable a la subvenció municipal]]-G57","v":0},{"$f":"DespesesProjecte[[#This Row],[Import de l''aportació / Cofinançament de l''organització]]-H57","v":0},{"$f":"DespesesProjecte[[#This Row],[Import total del projecte]]-I57","v":0}]
["I5. Adquisició de materials i béns consumibles parcialment imputables al projecte",{"$f":"SUM(B59:B62)","v":0},{"$f":"SUM(C59:C62)","v":0},{"$f":"SUM(DespesesProjecte[[#This Row],[Import imputable a la subvenció municipal]],DespesesProjecte[[#This Row],[Import de l''aportació / Cofinançament de l''organització]])","v":0},null,"I5. Adquisició de materials i béns consumibles parcialment imputables al projecte",{"$f":"SUM(G59:G62)","v":0},{"$f":"SUM(H59:H62)","v":0},0,null,{"$f":"DespesesProjecte[[#This Row],[Import imputable a la subvenció municipal]]-G58","v":0},{"$f":"DespesesProjecte[[#This Row],[Import de l''aportació / Cofinançament de l''organització]]-H58","v":0},{"$f":"DespesesProjecte[[#This Row],[Import total del projecte]]-I58","v":0}]
[null,null,null,{"$f":"SUM(DespesesProjecte[[#This Row],[Import imputable a la subvenció municipal]],DespesesProjecte[[#This Row],[Import de l''aportació / Cofinançament de l''organització]])","v":0},null,null,null,null,0,null,{"$f":"DespesesProjecte[[#This Row],[Import imputable a la subvenció municipal]]-G59","v":0},{"$f":"DespesesProjecte[[#This Row],[Import de l''aportació / Cofinançament de l''organització]]-H59","v":0},{"$f":"DespesesProjecte[[#This Row],[Import total del projecte]]-I59","v":0}]
[null,null,null,{"$f":"SUM(DespesesProjecte[[#This Row],[Import imputable a la subvenció municipal]],DespesesProjecte[[#This Row],[Import de l''aportació / Cofinançament de l''organització]])","v":0},null,null,null,null,0,null,{"$f":"DespesesProjecte[[#This Row],[Import imputable a la subvenció municipal]]-G60","v":0},{"$f":"DespesesProjecte[[#This Row],[Import de l''aportació / Cofinançament de l''organització]]-H60","v":0},{"$f":"DespesesProjecte[[#This Row],[Import total del projecte]]-I60","v":0}]
[null,null,null,{"$f":"SUM(DespesesProjecte[[#This Row],[Import imputable a la subvenció municipal]],DespesesProjecte[[#This Row],[Import de l''aportació / Cofinançament de l''organització]])","v":0},null,null,null,null,0,null,{"$f":"DespesesProjecte[[#This Row],[Import imputable a la subvenció municipal]]-G61","v":0},{"$f":"DespesesProjecte[[#This Row],[Import de l''aportació / Cofinançament de l''organització]]-H61","v":0},{"$f":"DespesesProjecte[[#This Row],[Import total del projecte]]-I61","v":0}]
[null,null,null,{"$f":"SUM(DespesesProjecte[[#This Row],[Import imputable a la subvenció municipal]],DespesesProjecte[[#This Row],[Import de l''aportació / Cofinançament de l''organització]])","v":0},null,null,null,null,0,null,{"$f":"DespesesProjecte[[#This Row],[Import imputable a la subvenció municipal]]-G62","v":0},{"$f":"DespesesProjecte[[#This Row],[Import de l''aportació / Cofinançament de l''organització]]-H62","v":0},{"$f":"DespesesProjecte[[#This Row],[Import total del projecte]]-I62","v":0}]
["I6. Manteniment d’edificis i/o instal·lacions",{"$f":"SUM(B64:B67)","v":0},{"$f":"SUM(C64:C67)","v":0},{"$f":"SUM(DespesesProjecte[[#This Row],[Import imputable a la subvenció municipal]],DespesesProjecte[[#This Row],[Import de l''aportació / Cofinançament de l''organització]])","v":0},null,"I6. Manteniment d’edificis i/o instal·lacions",{"$f":"SUM(G64:G67)","v":0},{"$f":"SUM(H64:H67)","v":0},0,null,{"$f":"DespesesProjecte[[#This Row],[Import imputable a la subvenció municipal]]-G63","v":0},{"$f":"DespesesProjecte[[#This Row],[Import de l''aportació / Cofinançament de l''organització]]-H63","v":0},{"$f":"DespesesProjecte[[#This Row],[Import total del projecte]]-I63","v":0}]
[null,null,null,{"$f":"SUM(DespesesProjecte[[#This Row],[Import imputable a la subvenció municipal]],DespesesProjecte[[#This Row],[Import de l''aportació / Cofinançament de l''organització]])","v":0},null,null,null,null,0,null,{"$f":"DespesesProjecte[[#This Row],[Import imputable a la subvenció municipal]]-G64","v":0},{"$f":"DespesesProjecte[[#This Row],[Import de l''aportació / Cofinançament de l''organització]]-H64","v":0},{"$f":"DespesesProjecte[[#This Row],[Import total del projecte]]-I64","v":0}]
[null,null,null,{"$f":"SUM(DespesesProjecte[[#This Row],[Import imputable a la subvenció municipal]],DespesesProjecte[[#This Row],[Import de l''aportació / Cofinançament de l''organització]])","v":0},null,null,null,null,0,null,{"$f":"DespesesProjecte[[#This Row],[Import imputable a la subvenció municipal]]-G65","v":0},{"$f":"DespesesProjecte[[#This Row],[Import de l''aportació / Cofinançament de l''organització]]-H65","v":0},{"$f":"DespesesProjecte[[#This Row],[Import total del projecte]]-I65","v":0}]
[null,null,null,{"$f":"SUM(DespesesProjecte[[#This Row],[Import imputable a la subvenció municipal]],DespesesProjecte[[#This Row],[Import de l''aportació / Cofinançament de l''organització]])","v":0},null,null,null,null,0,null,{"$f":"DespesesProjecte[[#This Row],[Import imputable a la subvenció municipal]]-G66","v":0},{"$f":"DespesesProjecte[[#This Row],[Import de l''aportació / Cofinançament de l''organització]]-H66","v":0},{"$f":"DespesesProjecte[[#This Row],[Import total del projecte]]-I66","v":0}]
[null,null,null,{"$f":"SUM(DespesesProjecte[[#This Row],[Import imputable a la subvenció municipal]],DespesesProjecte[[#This Row],[Import de l''aportació / Cofinançament de l''organització]])","v":0},null,null,null,null,0,null,{"$f":"DespesesProjecte[[#This Row],[Import imputable a la subvenció municipal]]-G67","v":0},{"$f":"DespesesProjecte[[#This Row],[Import de l''aportació / Cofinançament de l''organització]]-H67","v":0},{"$f":"DespesesProjecte[[#This Row],[Import total del projecte]]-I67","v":0}]
["I7. Comunicacions (telèfon, correus, connexió a internet)",{"$f":"SUM(B69:B72)","v":0},{"$f":"SUM(C69:C72)","v":0},{"$f":"SUM(DespesesProjecte[[#This Row],[Import imputable a la subvenció municipal]],DespesesProjecte[[#This Row],[Import de l''aportació / Cofinançament de l''organització]])","v":0},null,"I7. Comunicacions (telèfon, correus, connexió a internet)",{"$f":"SUM(G69:G72)","v":0},{"$f":"SUM(H69:H72)","v":0},0,null,{"$f":"DespesesProjecte[[#This Row],[Import imputable a la subvenció municipal]]-G68","v":0},{"$f":"DespesesProjecte[[#This Row],[Import de l''aportació / Cofinançament de l''organització]]-H68","v":0},{"$f":"DespesesProjecte[[#This Row],[Import total del projecte]]-I68","v":0}]
[null,null,null,{"$f":"SUM(DespesesProjecte[[#This Row],[Import imputable a la subvenció municipal]],DespesesProjecte[[#This Row],[Import de l''aportació / Cofinançament de l''organització]])","v":0},null,null,null,null,0,null,{"$f":"DespesesProjecte[[#This Row],[Import imputable a la subvenció municipal]]-G69","v":0},{"$f":"DespesesProjecte[[#This Row],[Import de l''aportació / Cofinançament de l''organització]]-H69","v":0},{"$f":"DespesesProjecte[[#This Row],[Import total del projecte]]-I69","v":0}]
[null,null,null,{"$f":"SUM(DespesesProjecte[[#This Row],[Import imputable a la subvenció municipal]],DespesesProjecte[[#This Row],[Import de l''aportació / Cofinançament de l''organització]])","v":0},null,null,null,null,0,null,{"$f":"DespesesProjecte[[#This Row],[Import imputable a la subvenció municipal]]-G70","v":0},{"$f":"DespesesProjecte[[#This Row],[Import de l''aportació / Cofinançament de l''organització]]-H70","v":0},{"$f":"DespesesProjecte[[#This Row],[Import total del projecte]]-I70","v":0}]
[null,null,null,{"$f":"SUM(DespesesProjecte[[#This Row],[Import imputable a la subvenció municipal]],DespesesProjecte[[#This Row],[Import de l''aportació / Cofinançament de l''organització]])","v":0},null,null,null,null,0,null,{"$f":"DespesesProjecte[[#This Row],[Import imputable a la subvenció municipal]]-G71","v":0},{"$f":"DespesesProjecte[[#This Row],[Import de l''aportació / Cofinançament de l''organització]]-H71","v":0},{"$f":"DespesesProjecte[[#This Row],[Import total del projecte]]-I71","v":0}]
[null,null,null,{"$f":"SUM(DespesesProjecte[[#This Row],[Import imputable a la subvenció municipal]],DespesesProjecte[[#This Row],[Import de l''aportació / Cofinançament de l''organització]])","v":0},null,null,null,null,0,null,{"$f":"DespesesProjecte[[#This Row],[Import imputable a la subvenció municipal]]-G72","v":0},{"$f":"DespesesProjecte[[#This Row],[Import de l''aportació / Cofinançament de l''organització]]-H72","v":0},{"$f":"DespesesProjecte[[#This Row],[Import total del projecte]]-I72","v":0}]
["I8. Despeses financeres",{"$f":"SUM(B74:B77)","v":0},{"$f":"SUM(C74:C77)","v":0},{"$f":"SUM(DespesesProjecte[[#This Row],[Import imputable a la subvenció municipal]],DespesesProjecte[[#This Row],[Import de l''aportació / Cofinançament de l''organització]])","v":0},null,"I8. Despeses financeres",{"$f":"SUM(G74:G77)","v":0},{"$f":"SUM(H74:H77)","v":0},0,null,{"$f":"DespesesProjecte[[#This Row],[Import imputable a la subvenció municipal]]-G73","v":0},{"$f":"DespesesProjecte[[#This Row],[Import de l''aportació / Cofinançament de l''organització]]-H73","v":0},{"$f":"DespesesProjecte[[#This Row],[Import total del projecte]]-I73","v":0}]
[null,null,null,{"$f":"SUM(DespesesProjecte[[#This Row],[Import imputable a la subvenció municipal]],DespesesProjecte[[#This Row],[Import de l''aportació / Cofinançament de l''organització]])","v":0},null,null,null,null,0,null,{"$f":"DespesesProjecte[[#This Row],[Import imputable a la subvenció municipal]]-G74","v":0},{"$f":"DespesesProjecte[[#This Row],[Import de l''aportació / Cofinançament de l''organització]]-H74","v":0},{"$f":"DespesesProjecte[[#This Row],[Import total del projecte]]-I74","v":0}]
[null,null,null,{"$f":"SUM(DespesesProjecte[[#This Row],[Import imputable a la subvenció municipal]],DespesesProjecte[[#This Row],[Import de l''aportació / Cofinançament de l''organització]])","v":0},null,null,null,null,0,null,{"$f":"DespesesProjecte[[#This Row],[Import imputable a la subvenció municipal]]-G75","v":0},{"$f":"DespesesProjecte[[#This Row],[Import de l''aportació / Cofinançament de l''organització]]-H75","v":0},{"$f":"DespesesProjecte[[#This Row],[Import total del projecte]]-I75","v":0}]
[null,null,null,{"$f":"SUM(DespesesProjecte[[#This Row],[Import imputable a la subvenció municipal]],DespesesProjecte[[#This Row],[Import de l''aportació / Cofinançament de l''organització]])","v":0},null,null,null,null,0,null,{"$f":"DespesesProjecte[[#This Row],[Import imputable a la subvenció municipal]]-G76","v":0},{"$f":"DespesesProjecte[[#This Row],[Import de l''aportació / Cofinançament de l''organització]]-H76","v":0},{"$f":"DespesesProjecte[[#This Row],[Import total del projecte]]-I76","v":0}]
[null,null,null,{"$f":"SUM(DespesesProjecte[[#This Row],[Import imputable a la subvenció municipal]],DespesesProjecte[[#This Row],[Import de l''aportació / Cofinançament de l''organització]])","v":0},null,null,null,null,0,null,{"$f":"DespesesProjecte[[#This Row],[Import imputable a la subvenció municipal]]-G77","v":0},{"$f":"DespesesProjecte[[#This Row],[Import de l''aportació / Cofinançament de l''organització]]-H77","v":0},{"$f":"DespesesProjecte[[#This Row],[Import total del projecte]]-I77","v":0}]
["I9. Subministraments",{"$f":"SUM(B79:B82)","v":0},{"$f":"SUM(C79:C82)","v":0},{"$f":"SUM(DespesesProjecte[[#This Row],[Import imputable a la subvenció municipal]],DespesesProjecte[[#This Row],[Import de l''aportació / Cofinançament de l''organització]])","v":0},null,"I9. Subministraments",{"$f":"SUM(G79:G82)","v":0},{"$f":"SUM(H79:H82)","v":0},0,null,{"$f":"DespesesProjecte[[#This Row],[Import imputable a la subvenció municipal]]-G78","v":0},{"$f":"DespesesProjecte[[#This Row],[Import de l''aportació / Cofinançament de l''organització]]-H78","v":0},{"$f":"DespesesProjecte[[#This Row],[Import total del projecte]]-I78","v":0}]
[null,null,null,{"$f":"SUM(DespesesProjecte[[#This Row],[Import imputable a la subvenció municipal]],DespesesProjecte[[#This Row],[Import de l''aportació / Cofinançament de l''organització]])","v":0},null,null,null,null,0,null,{"$f":"DespesesProjecte[[#This Row],[Import imputable a la subvenció municipal]]-G79","v":0},{"$f":"DespesesProjecte[[#This Row],[Import de l''aportació / Cofinançament de l''organització]]-H79","v":0},{"$f":"DespesesProjecte[[#This Row],[Import total del projecte]]-I79","v":0}]
[null,null,null,{"$f":"SUM(DespesesProjecte[[#This Row],[Import imputable a la subvenció municipal]],DespesesProjecte[[#This Row],[Import de l''aportació / Cofinançament de l''organització]])","v":0},null,null,null,null,0,null,{"$f":"DespesesProjecte[[#This Row],[Import imputable a la subvenció municipal]]-G80","v":0},{"$f":"DespesesProjecte[[#This Row],[Import de l''aportació / Cofinançament de l''organització]]-H80","v":0},{"$f":"DespesesProjecte[[#This Row],[Import total del projecte]]-I80","v":0}]
[null,null,null,{"$f":"SUM(DespesesProjecte[[#This Row],[Import imputable a la subvenció municipal]],DespesesProjecte[[#This Row],[Import de l''aportació / Cofinançament de l''organització]])","v":0},null,null,null,null,0,null,{"$f":"DespesesProjecte[[#This Row],[Import imputable a la subvenció municipal]]-G81","v":0},{"$f":"DespesesProjecte[[#This Row],[Import de l''aportació / Cofinançament de l''organització]]-H81","v":0},{"$f":"DespesesProjecte[[#This Row],[Import total del projecte]]-I81","v":0}]
[null,null,null,{"$f":"SUM(DespesesProjecte[[#This Row],[Import imputable a la subvenció municipal]],DespesesProjecte[[#This Row],[Import de l''aportació / Cofinançament de l''organització]])","v":0},null,null,null,null,0,null,{"$f":"DespesesProjecte[[#This Row],[Import imputable a la subvenció municipal]]-G82","v":0},{"$f":"DespesesProjecte[[#This Row],[Import de l''aportació / Cofinançament de l''organització]]-H82","v":0},{"$f":"DespesesProjecte[[#This Row],[Import total del projecte]]-I82","v":0}]
["I10. Treball realitzat per altres empreses, parcialment imputables al projecte (neteja, seguretat...)",{"$f":"SUM(B84:B87)","v":0},{"$f":"SUM(C84:C87)","v":0},{"$f":"SUM(DespesesProjecte[[#This Row],[Import imputable a la subvenció municipal]],DespesesProjecte[[#This Row],[Import de l''aportació / Cofinançament de l''organització]])","v":0},null,"I10. Treball realitzat per altres empreses, parcialment imputables al projecte (neteja, seguretat...)",{"$f":"SUM(G84:G87)","v":0},{"$f":"SUM(H84:H87)","v":0},0,null,{"$f":"DespesesProjecte[[#This Row],[Import imputable a la subvenció municipal]]-G83","v":0},{"$f":"DespesesProjecte[[#This Row],[Import de l''aportació / Cofinançament de l''organització]]-H83","v":0},{"$f":"DespesesProjecte[[#This Row],[Import total del projecte]]-I83","v":0}]
[null,null,null,{"$f":"SUM(DespesesProjecte[[#This Row],[Import imputable a la subvenció municipal]],DespesesProjecte[[#This Row],[Import de l''aportació / Cofinançament de l''organització]])","v":0},null,null,null,null,0,null,{"$f":"DespesesProjecte[[#This Row],[Import imputable a la subvenció municipal]]-G84","v":0},{"$f":"DespesesProjecte[[#This Row],[Import de l''aportació / Cofinançament de l''organització]]-H84","v":0},{"$f":"DespesesProjecte[[#This Row],[Import total del projecte]]-I84","v":0}]
[null,null,null,{"$f":"SUM(DespesesProjecte[[#This Row],[Import imputable a la subvenció municipal]],DespesesProjecte[[#This Row],[Import de l''aportació / Cofinançament de l''organització]])","v":0},null,null,null,null,0,null,{"$f":"DespesesProjecte[[#This Row],[Import imputable a la subvenció municipal]]-G85","v":0},{"$f":"DespesesProjecte[[#This Row],[Import de l''aportació / Cofinançament de l''organització]]-H85","v":0},{"$f":"DespesesProjecte[[#This Row],[Import total del projecte]]-I85","v":0}]
[null,null,null,{"$f":"SUM(DespesesProjecte[[#This Row],[Import imputable a la subvenció municipal]],DespesesProjecte[[#This Row],[Import de l''aportació / Cofinançament de l''organització]])","v":0},null,null,null,null,0,null,{"$f":"DespesesProjecte[[#This Row],[Import imputable a la subvenció municipal]]-G86","v":0},{"$f":"DespesesProjecte[[#This Row],[Import de l''aportació / Cofinançament de l''organització]]-H86","v":0},{"$f":"DespesesProjecte[[#This Row],[Import total del projecte]]-I86","v":0}]
[null,null,null,{"$f":"SUM(DespesesProjecte[[#This Row],[Import imputable a la subvenció municipal]],DespesesProjecte[[#This Row],[Import de l''aportació / Cofinançament de l''organització]])","v":0},null,null,null,null,0,null,{"$f":"DespesesProjecte[[#This Row],[Import imputable a la subvenció municipal]]-G87","v":0},{"$f":"DespesesProjecte[[#This Row],[Import de l''aportació / Cofinançament de l''organització]]-H87","v":0},{"$f":"DespesesProjecte[[#This Row],[Import total del projecte]]-I87","v":0}]
["TOTAL DESPESES INDIRECTES (es podran assignar al projecte subvencionable fent sevir un percentatge d’assignació) - Màxim 10% de l’import imputable a la subvenció municipal",{"$f":"SUM(B38,B43,B48,B53,B58,B63,B68,B73,B78,B83)","v":0},{"$f":"SUM(C38,C43,C48,C53,C58,C63,C68,C73,C78,C83)","v":0},{"$f":"D38+D43+D48+D53+D58+D63+D68+D73+D78+D83","v":0},null,"TOTAL DESPESES INDIRECTES (es podran assignar al projecte subvencionable fent sevir un percentatge d’assignació) - Màxim 10% de l’import imputable a la subvenció municipal",{"$f":"SUM(G38,G43,G48,G53,G58,G63,G68,G73,G78,G83)","v":0},{"$f":"SUM(H38,H43,H48,H53,H58,H63,H68,H73,H78,H83)","v":0},{"$f":"I38+I43+I48+I53+I58+I63+I68+I73+I78+I83","v":0},{"$f":"+IF(G88>G10*0.1,\"ALERTA: Màxim 10% import imputable a la subvenció municipal\", \" \")","v":" "},{"$f":"DespesesProjecte[[#This Row],[Import imputable a la subvenció municipal]]-G88","v":0},{"$f":"DespesesProjecte[[#This Row],[Import de l''aportació / Cofinançament de l''organització]]-H88","v":0},{"$f":"DespesesProjecte[[#This Row],[Import total del projecte]]-I88","v":0}]
["TOTAL DE DESPESES PREVISTES",{"$f":"SUM(B37+B88)","v":0},{"$f":"SUM(C37+C88)","v":0},{"$f":"SUM(D37+D88)","v":0},null,"TOTAL DE DESPESES PREVISTES",{"$f":"SUM(G37+G88)","v":0},{"$f":"SUM(H37+H88)","v":0},{"$f":"SUM(I37+I88)","v":0},null,{"$f":"DespesesProjecte[[#This Row],[Import imputable a la subvenció municipal]]-G89","v":0},{"$f":"DespesesProjecte[[#This Row],[Import de l''aportació / Cofinançament de l''organització]]-H89","v":0},{"$f":"DespesesProjecte[[#This Row],[Import total del projecte]]-I89","v":0}]
[]
["Modalitat Ab: Consolidació empresarial i escalabilitat de les iniciatives d’Economia Social i Solidària per enfortir la seva viabilitat econòmica, així com l’ orientació d’aquesta consolidació a l’Acord i Estratègia #ESSBCN2030 i als objectius estratègics del PIESS 2024-2027"]
["1.  La quantia de la subvenció atorgada no superarà el 80% de la despesa total del projecte a subvencionar. "]
["2.  L'import màxim de subvenció per a la modalitat Ab de l’àmbit temàtic de Creació i consolidació (A) és 10.000€."]
["3.  En el cas que la sol·licitud presentada sobrepassi l’import màxim, es considerarà com a import sol·licitat el màxim de l'establert a la convocatòria."]
["4.  Es limita amb un màxim del 25% l’import de la subvenció per a despeses de personal propi que participa de forma directa i degudament al projecte."]
["5. En el cas de pràctiques de persones estudiants universitàries i de formació dual de FP en organitzacions i empreses de l’ESS, es podrà justificar les despeses del pagament de la seguretat social quan aquesta no sigui bonificada o en la part no bonificada i el salari percebut per la persona estudiant en pràctiques, amb un límit del 80% del seu sou brut corresponent al període de l’execució de la subvenció"]
["6. En cap cas es consideraran despeses subvencionables:\n> Els impostos indirectes quan siguin susceptibles de recuperació o compensació.\n> Les despeses d'inversió, incloses les adquisicions de béns mobles.\n> Les despeses realitzades amb data anterior a l'inici del projecte i data posterior a la finalització del projecte.\n> Altres despeses que s'indiquin a la convocatòria."]
["7. Són imputables en aquesta modalitat les despeses indirectes, detallades en l’apartat 13.3. de les bases reguladores; amb un màxim del 10% de l'import de la subvenció."]
["8. La retribució de les persones contractades en el marc del projecte subvencionat no pot ser inferior al Salari Mínim Interprofessional (SMI), ni a l'estipulada al corresponent conveni o marc normatiu de referència (punt 7 de les bases 2024: requisits dels projectes)."]
["9. Els materials produïts de difusió, estudis, informes o materials didàctics utilitzats, etc. en el cas de tractar-se de despesa elegible de la subvenció, hauran de tenir llicència Creative Commons -Compartir Igual- (share a like)  i no podrà tenir la condició –Sense Obres Derivades- (no derivate Works)."]
["10.  Els projectes subvencionats han de fomentar activitats d'interès públic o social, les quals han de ser gratuïtes per a les persones participants o en cap cas el preu ha de suposar un obstacle per a la seva participació, buscant altres formes d'accés per a persones amb dificultats econòmiques. En el cas que hi hagi algun tipus de lucre, haurà de revertir en les pròpies activitats subvencionades."]
["11. L'Ajuntament de Barcelona i les seves entitats municipals en cap cas subvencionaran el mateix projecte, executat durant el mateix període, per cap altre procediment de concessió que no sigui el regulat per les bases reguladores."]
["12. El/la beneficiari/ària no podrà alterar en cap cas el destí de les subvencions concedides."]

{"sheet":"Resum Pressupost","index":2,"n_rows":71,"n_cols":11,"rows_kept":71,"cut":false,"hidden":false,"merged":[[10,3,11,3],[10,2,11,2],[10,1,11,1],[10,0,11,0],[10,4,11,4],[9,9,10,9],[9,8,10,8],[9,7,10,7],[9,6,10,6],[12,8,13,8],[12,9,13,9],[12,7,13,7],[12,6,13,6],[26,6,26,9],[14,0,15,1],[14,2,15,2],[14,3,15,3],[14,4,15,4],[21,6,21,7],[6,6,7,7],[3,0,3,8],[6,8,7,8],[1,2,2,7],[6,9,7,9],[5,0,5,1],[6,0,7,1],[6,2,7,2],[6,3,7,3],[6,4,7,4]]}
[]
[null,null,"Resum pressupost Ab"]
[]
["Subvencions de l'Ajuntament de Barcelona per l'enfortiment de l'Economia Social i Solidària i per la intercooperació en l'Estratègia #ESSBCN2030 - ENFORTIM L’ESS 2024",null,null,null,null,null,null,null,null,"MODALITAT Ab"]
[]
["DESPESES PREVISTES",null,null,null,null,null,"INGRESSOS PREVISTOS"]
["Despeses directes \n(aquelles que s'identifiquen directament amb el projecte)",null,"Previsió inicial cost total","Previsió reformulada cost total","Import imputat a la subvenció atorgada",null,"Ingressos previstos",null,"Previsió inicial ingrés total","Previsió reformulada ingrés total"]
[]
["Ab","D1.  Nòmines i seguretat social (règim general o socis/es cooperativistes en règim d’autònoms) del personal propi vinculat al projecte subvencionable (màxim 25% import subvenció)",{"$f":"+'Reformulació Pressupost Ab'!D19","v":0},{"$f":"+'Reformulació Pressupost Ab'!I19","v":0},{"$f":"+'Reformulació Pressupost Ab'!G19","v":0},{"$f":"+IF(D9<0,\"No s'admeten valors negatius\",\"\")","v":""},"A.","Subvenció municipal (import sol·licitat a la instància/atorgat)",{"$f":"'Reformulació Pressupost Ab'!B10","v":0},{"$f":"'Reformulació Pressupost Ab'!G10","v":0}]
[null,"D2. Nòmines i seguretat social d’estudiants en pràctiques (amb un límit del 80% del seu sou brut corresponent al període de l’execució de la subvenció) - excepte si la seguretat social està bonificada",{"$f":"+'Reformulació Pressupost Ab'!D23","v":0},{"$f":"+'Reformulació Pressupost Ab'!I23","v":0},{"$f":"+'Reformulació Pressupost Ab'!G23","v":0},null,"B.","Subvencions d'altres administracions"]
[null,"D3. Treballs realitzats per professionals i empreses externes directament vinculades al projecte, (inclou despeses de l'estudiant en pràctiques: taxes i altres despeses relacionades amb el conveni de pràctiques)",{"$f":"+'Reformulació Pressupost Ab'!D28","v":0},{"$f":"+'Reformulació Pressupost Ab'!I28","v":0},{"$f":"+'Reformulació Pressupost Ab'!G28","v":0},null,null,null,null,null,{"$f":"+IF(J11<0,\"No s'admeten valors negatius\",\"\")","v":""}]
[null,null,null,null,null,{"$f":"+IF(D11<0,\"No s'admeten valors negatius\",\"\")","v":""},"C.","Subvencions d'ens privats",null,null,""]
[null,"D4. Despeses de matriculació en accions formatives externes amb una durada mínima de 150 hores i/o un cost mínim de 600€ per a cada participant",{"$f":"+'Reformulació Pressupost Ab'!D32","v":0},{"$f":"+'Reformulació Pressupost Ab'!I32","v":0},{"$f":"+'Reformulació Pressupost Ab'!G32","v":0},null,"D.","Recursos propis de l'organització aplicats al projecte"]
[null,"Total Despeses Directes   ",{"$f":"SUM(C9:C13)","v":0},{"$f":"SUM(D9:D13)","v":0},{"$f":"SUM(E9:E13)","v":0},{"$f":"+IF(D12<0,\"No s'admeten valors negatius\",\"\")","v":""}]
["Despeses indirectes (màxim 10% subvenció)",null,"Previsió inicial","Previsió reformulada","Import imputat a la subvenció",{"$f":"+IF(D14<0,\"No s'admeten valors negatius\",\"\")","v":""},"E.","Taquillatge"]
[null,null,null,null,null,null,"F.","Quotes d'inscripció"]
[null,null,{"$f":"+'Reformulació Pressupost Ab'!D88","v":0},{"$f":"+'Reformulació Pressupost Ab'!I88","v":0},{"$f":"+'Reformulació Pressupost Ab'!G88","v":0},null,"G.","Venda de Productes"]
[null,null,null,null,null,null,"H","Publicitat i/o Esponsorització"]
[null,null,null,null,null,null,"I.","Altres ingressos"]
[null,null,null,null,null,null,null,"Total Ingressos",{"$f":"SUM(I9:I19)","v":0},{"$f":"SUM(J9:J19)","v":0}]
[null,"Total Despeses Indirectes   ",{"$f":"SUM(C17:C20)","v":0},{"$f":"SUM(D17:D20)","v":0},{"$f":"SUM(E17:E20)","v":0}]
[null,"Total Despeses ",{"$f":"+C14+C21","v":0},{"$f":"+D14+D21","v":0},{"$f":"+E14+E21","v":0},null,"Ingressos menys despeses ",null,{"$f":"+I20-C22","v":0},{"$f":"+J20-D22","v":0}]
[]
[null,null,null,null,null,null,null,null,"% subvencionat inicialment",{"$f":"I9/C22","v":{"$error":"#DIV/0!"}}]
[]
[null,null,null,null,null,null,null,null,"% subvencionat després de reformular",{"$f":"+J9/D22","v":{"$error":"#DIV/0!"}},"*"]
[null,null,null,null,null,null,"*Aquest percentatge ha de ser igual o menor al percentatge subvencionat inicialment."]
[]
[]
[]
[]
[]
[]
[]
[]
[]
[]
[]
[]
[]
[]
[]
[]
[]
[]
[]
[]
[]
[]
[]
[]
[]
[]
[]
[]
[]
[]
[]
[]
[]
[]
[]
[]
[]
[]
[]
[]
[]
[]
[]
[null,null,0]